[Event "Titled Tuesday Blitz February 22 Late 2022"]
[White "Bodnar, Nikolay"]
[Black "Tari, Aryan"]
[WhiteFideId "14106469"]
[BlackFideId "1510045"]
[WhiteElo "2296"]
[BlackElo "2567"]
[Result "0-1"]
[Round "01"]
[TimeControl "180+1"]
[Date "2022.02.22"]
[WhiteClock "0:00:10"]
[BlackClock "0:00:16"]

1. e4 {[%clk 0:03:00]}  e5 {[%clk 0:02:42]} 2. Nf3 {[%clk 0:03:01]}  Nc6 {[%clk 0:02:42]} 3. Bc4 {[%clk 0:03:01]}  Nf6 {[%clk 0:02:37]} 4. d3 {[%clk 0:03:01]}  Bc5 {[%clk 0:02:36]} 5. c3 {[%clk 0:03:01]}  a6 {[%clk 0:02:36]} 6. O-O {[%clk 0:02:59]}  Ba7 {[%clk 0:02:37]} 7. a4 {[%clk 0:02:57]}  d6 {[%clk 0:02:37]} 8. Re1 {[%clk 0:02:53]}  O-O {[%clk 0:02:37]} 9. h3 {[%clk 0:02:49]}  Ne7 {[%clk 0:02:31]} 10. Be3 {[%clk 0:02:42]}  Bxe3 {[%clk 0:02:30]} 11. Rxe3 {[%clk 0:02:43]}  Ng6 {[%clk 0:02:29]} 12. Nbd2 {[%clk 0:02:42]}  d5 {[%clk 0:02:27]} 13. exd5 {[%clk 0:02:28]}  Nxd5 {[%clk 0:02:28]} 14. Re1 {[%clk 0:02:28]}  Ndf4 {[%clk 0:01:40]} 15. Ne4 {[%clk 0:01:57]}  Kh8 {[%clk 0:01:28]} 16. Neg5 {[%clk 0:01:46]}  Qf6 {[%clk 0:01:22]} 17. d4 {[%clk 0:01:42]}  exd4 {[%clk 0:01:04]} 18. Qxd4 {[%clk 0:01:42]}  h6 {[%clk 0:00:44]} 19. Qxf6 {[%clk 0:01:35]}  gxf6 {[%clk 0:00:45]} 20. Ne4 {[%clk 0:01:31]}  Ne5 {[%clk 0:00:33]} 21. Bf1 {[%clk 0:01:16]}  Nxf3+ {[%clk 0:00:30]} 22. gxf3 {[%clk 0:01:15]}  Rg8+ {[%clk 0:00:26]} 23. Kh2 {[%clk 0:01:15]}  Rg6 {[%clk 0:00:24]} 24. Rad1 {[%clk 0:01:01]}  Be6 {[%clk 0:00:24]} 25. Nc5 {[%clk 0:01:01]}  Bf5 {[%clk 0:00:18]} 26. Rd4 {[%clk 0:00:52]}  Ne6 {[%clk 0:00:18]} 27. Rd5 {[%clk 0:00:52]}  Rg5 {[%clk 0:00:15]} 28. h4 {[%clk 0:00:33]}  Rh5 {[%clk 0:00:14]} 29. Nxe6 {[%clk 0:00:33]}  fxe6 {[%clk 0:00:12]} 30. Rd4 {[%clk 0:00:31]}  e5 {[%clk 0:00:10]} 31. Rc4 {[%clk 0:00:20]}  b5 {[%clk 0:00:11]} 32. axb5 {[%clk 0:00:19]}  axb5 {[%clk 0:00:12]} 33. Rxc7 {[%clk 0:00:20]}  Rg8 {[%clk 0:00:12]} 34. Re4 {[%clk 0:00:17]}  Bxe4 {[%clk 0:00:13]} 35. fxe4 {[%clk 0:00:17]}  Rxh4+ {[%clk 0:00:13]} 36. Bh3 {[%clk 0:00:18]}  Rxe4 {[%clk 0:00:12]} 37. Rf7 {[%clk 0:00:15]}  Rf4 {[%clk 0:00:12]} 38. Kh1 {[%clk 0:00:11]}  Rxf2 {[%clk 0:00:12]} 39. b4 {[%clk 0:00:10]}  e4 {[%clk 0:00:12]} 40. Re7 {[%clk 0:00:10]}  f5 {[%clk 0:00:13]} 41. Re5 {[%clk 0:00:10]}  Rg5 {[%clk 0:00:12]} 42. Rxb5 {[%clk 0:00:10]}  e3 {[%clk 0:00:12]} 43. Re5 {[%clk 0:00:09]}  e2 {[%clk 0:00:13]} 44. b5 {[%clk 0:00:08]}  Rf1+ {[%clk 0:00:13]} 45. Kh2 {[%clk 0:00:09]}  e1=Q {[%clk 0:00:13]} 46. Rxe1 {[%clk 0:00:09]}  Rxe1 {[%clk 0:00:14]} 47. b6 {[%clk 0:00:09]}  Re2+ {[%clk 0:00:15]} 48. Kh1 {[%clk 0:00:10]}  Re1+ {[%clk 0:00:15]} 49. Kh2 {[%clk 0:00:10]}  Rb1 {[%clk 0:00:16]} 0-1


[Site "https://www.chess.com"]

[Event "Titled Tuesday Blitz February 22 Late 2022"]
[White "Borisova, Ekaterina"]
[Black "Gerbelli Neto, Eduardo"]
[WhiteFideId "34124184"]
[BlackFideId "2103281"]
[WhiteElo "2034"]
[BlackElo "2178"]
[Result "1-0"]
[Round "01"]
[TimeControl "180+1"]
[Date "2022.02.23"]
[WhiteClock "0:01:14"]
[BlackClock "0:00:20"]

1. d4 {[%clk 0:03:00]}  d5 {[%clk 0:02:59]} 2. c4 {[%clk 0:03:00]}  c6 {[%clk 0:03:00]} 3. cxd5 {[%clk 0:03:00]}  cxd5 {[%clk 0:02:59]} 4. Bf4 {[%clk 0:03:01]}  Nf6 {[%clk 0:03:00]} 5. Nc3 {[%clk 0:03:00]}  Nc6 {[%clk 0:03:01]} 6. e3 {[%clk 0:03:00]}  Bf5 {[%clk 0:02:59]} 7. Nf3 {[%clk 0:02:59]}  e6 {[%clk 0:02:59]} 8. Qb3 {[%clk 0:03:00]}  Qc8 {[%clk 0:02:52]} 9. Rc1 {[%clk 0:02:54]}  Bb4 {[%clk 0:02:48]} 10. Ne5 {[%clk 0:02:53]}  Bxc3+ {[%clk 0:02:41]} 11. Rxc3 {[%clk 0:02:52]}  Ne4 {[%clk 0:02:37]} 12. Rc1 {[%clk 0:02:43]}  f6 {[%clk 0:02:26]} 13. Nxc6 {[%clk 0:02:40]}  bxc6 {[%clk 0:02:27]} 14. Bb5 {[%clk 0:02:34]}  O-O {[%clk 0:02:23]} 15. f3 {[%clk 0:02:19]}  Ng5 {[%clk 0:02:00]} 16. Bxc6 {[%clk 0:02:14]}  Qa6 {[%clk 0:01:38]} 17. Bxa8 {[%clk 0:02:08]}  Rxa8 {[%clk 0:01:37]} 18. Kf2 {[%clk 0:02:03]}  Nf7 {[%clk 0:01:31]} 19. g4 {[%clk 0:01:56]}  Bd3 {[%clk 0:01:27]} 20. Rc7 {[%clk 0:01:53]}  g5 {[%clk 0:01:13]} 21. Bg3 {[%clk 0:01:49]}  Bc4 {[%clk 0:01:10]} 22. Qb7 {[%clk 0:01:48]}  Qxb7 {[%clk 0:00:53]} 23. Rxb7 {[%clk 0:01:48]}  a5 {[%clk 0:00:52]} 24. b3 {[%clk 0:01:45]}  Bd3 {[%clk 0:00:44]} 25. Rc1 {[%clk 0:01:41]}  a4 {[%clk 0:00:41]} 26. Rb8+ {[%clk 0:01:36]}  Rxb8 {[%clk 0:00:40]} 27. Bxb8 {[%clk 0:01:37]}  axb3 {[%clk 0:00:41]} 28. axb3 {[%clk 0:01:38]}  e5 {[%clk 0:00:38]} 29. b4 {[%clk 0:01:34]}  Kg7 {[%clk 0:00:33]} 30. Rc5 {[%clk 0:01:31]}  Bc4 {[%clk 0:00:32]} 31. b5 {[%clk 0:01:31]}  exd4 {[%clk 0:00:32]} 32. exd4 {[%clk 0:01:31]}  Nd8 {[%clk 0:00:33]} 33. Ba7 {[%clk 0:01:24]}  Ne6 {[%clk 0:00:31]} 34. b6 {[%clk 0:01:15]}  Ba6 {[%clk 0:00:20]} 35. Rxd5 {[%clk 0:01:14]} 1-0


[Site "https://www.chess.com"]

[Event "Titled Tuesday Blitz February 22 Late 2022"]
[White "Boros, Denes"]
[Black "Melian, Juan Sebastian"]
[WhiteFideId "722340"]
[BlackFideId "3706575"]
[WhiteElo "2464"]
[BlackElo "1842"]
[Result "1-0"]
[Round "01"]
[TimeControl "180+1"]
[Date "2022.02.23"]
[WhiteClock "0:00:45"]
[BlackClock "0:00:02"]

1. d4 {[%clk 0:02:59]}  Nf6 {[%clk 0:02:57]} 2. Nc3 {[%clk 0:02:59]}  d5 {[%clk 0:02:56]} 3. Bg5 {[%clk 0:03:00]}  c6 {[%clk 0:02:54]} 4. Nf3 {[%clk 0:02:51]}  Bf5 {[%clk 0:02:53]} 5. Nh4 {[%clk 0:02:49]}  Bg4 {[%clk 0:02:40]} 6. h3 {[%clk 0:02:48]}  Bh5 {[%clk 0:02:41]} 7. Qd3 {[%clk 0:02:46]}  Nbd7 {[%clk 0:02:35]} 8. O-O-O {[%clk 0:02:41]}  Qa5 {[%clk 0:02:28]} 9. g4 {[%clk 0:02:40]}  Bg6 {[%clk 0:02:28]} 10. Nxg6 {[%clk 0:02:40]}  hxg6 {[%clk 0:02:28]} 11. Bd2 {[%clk 0:02:33]}  Qc7 {[%clk 0:02:26]} 12. Bg2 {[%clk 0:02:33]}  O-O-O {[%clk 0:02:22]} 13. g5 {[%clk 0:02:29]}  Nh5 {[%clk 0:02:14]} 14. Qf3 {[%clk 0:02:25]}  e5 {[%clk 0:02:12]} 15. e3 {[%clk 0:02:21]}  f5 {[%clk 0:01:57]} 16. gxf6 {[%clk 0:02:20]}  gxf6 {[%clk 0:01:45]} 17. h4 {[%clk 0:02:18]}  e4 {[%clk 0:01:42]} 18. Qe2 {[%clk 0:02:04]}  Bd6 {[%clk 0:01:35]} 19. Kb1 {[%clk 0:02:05]}  f5 {[%clk 0:01:33]} 20. Bh3 {[%clk 0:02:02]}  Rdf8 {[%clk 0:01:21]} 21. Rhg1 {[%clk 0:01:58]}  Rf6 {[%clk 0:01:20]} 22. f4 {[%clk 0:01:54]}  Nf8 {[%clk 0:01:13]} 23. Rc1 {[%clk 0:01:51]}  Kb8 {[%clk 0:01:12]} 24. Nd1 {[%clk 0:01:51]}  Ng7 {[%clk 0:01:01]} 25. c4 {[%clk 0:01:47]}  Qf7 {[%clk 0:00:52]} 26. cxd5 {[%clk 0:01:45]}  cxd5 {[%clk 0:00:53]} 27. Nc3 {[%clk 0:01:41]}  Nd7 {[%clk 0:00:52]} 28. Nb5 {[%clk 0:01:32]}  Nb6 {[%clk 0:00:52]} 29. Nxd6 {[%clk 0:01:32]}  Rxd6 {[%clk 0:00:53]} 30. Bb4 {[%clk 0:01:28]}  Rd7 {[%clk 0:00:53]} 31. Qf2 {[%clk 0:01:24]}  Qf6 {[%clk 0:00:45]} 32. Rg5 {[%clk 0:01:19]}  Ne6 {[%clk 0:00:44]} 33. Qg3 {[%clk 0:01:19]}  Nxg5 {[%clk 0:00:44]} 34. fxg5+ {[%clk 0:01:19]}  f4 {[%clk 0:00:41]} 35. gxf6 {[%clk 0:01:18]}  fxg3 {[%clk 0:00:41]} 36. Bxd7 {[%clk 0:01:17]}  Nxd7 {[%clk 0:00:42]} 37. Bd6+ {[%clk 0:01:13]}  Ka8 {[%clk 0:00:41]} 38. Bxg3 {[%clk 0:01:09]}  a6 {[%clk 0:00:21]} 39. f7 {[%clk 0:01:09]}  Rf8 {[%clk 0:00:21]} 40. Rf1 {[%clk 0:01:08]}  Rh8 {[%clk 0:00:14]} 41. Be5 {[%clk 0:01:00]}  Rc8 {[%clk 0:00:08]} 42. Bd6 {[%clk 0:00:53]}  Nf8 {[%clk 0:00:07]} 43. Rg1 {[%clk 0:00:49]}  Ka7 {[%clk 0:00:06]} 44. Rg5 {[%clk 0:00:48]}  Kb6 {[%clk 0:00:04]} 45. Rxd5 {[%clk 0:00:48]}  Ne6 {[%clk 0:00:04]} 46. Re5 {[%clk 0:00:46]}  Ng7 {[%clk 0:00:02]} 47. f8=Q {[%clk 0:00:45]} 1-0


[Site "https://www.chess.com"]

[Event "Titled Tuesday Blitz February 22 Late 2022"]
[White "Budrewicz, Krzysztof"]
[Black "Roque Sola, Gisela"]
[WhiteFideId "1127950"]
[BlackFideId "5120241"]
[WhiteElo "2248"]
[BlackElo "1863"]
[Result "1-0"]
[Round "01"]
[TimeControl "180+1"]
[Date "2022.02.23"]
[WhiteClock "0:01:01"]
[BlackClock "0:00:33"]

1. d4 {[%clk 0:02:59]}  e6 {[%clk 0:02:59]} 2. c4 {[%clk 0:02:58]}  Nf6 {[%clk 0:02:59]} 3. Nf3 {[%clk 0:02:57]}  d5 {[%clk 0:02:57]} 4. Nc3 {[%clk 0:02:57]}  Be7 {[%clk 0:02:56]} 5. Bf4 {[%clk 0:02:57]}  O-O {[%clk 0:02:55]} 6. e3 {[%clk 0:02:57]}  c6 {[%clk 0:02:54]} 7. Bd3 {[%clk 0:02:55]}  dxc4 {[%clk 0:02:53]} 8. Bxc4 {[%clk 0:02:56]}  Nbd7 {[%clk 0:02:53]} 9. a4 {[%clk 0:02:55]}  Nb6 {[%clk 0:02:45]} 10. Be2 {[%clk 0:02:52]}  Bd6 {[%clk 0:02:45]} 11. Bg5 {[%clk 0:02:52]}  h6 {[%clk 0:02:43]} 12. Bh4 {[%clk 0:02:52]}  Nbd5 {[%clk 0:02:39]} 13. O-O {[%clk 0:02:50]}  Qb6 {[%clk 0:02:30]} 14. Qc2 {[%clk 0:02:41]}  Nb4 {[%clk 0:02:28]} 15. Qb1 {[%clk 0:02:39]}  Nfd5 {[%clk 0:02:27]} 16. a5 {[%clk 0:02:37]}  Qc7 {[%clk 0:02:25]} 17. e4 {[%clk 0:02:34]}  Nf4 {[%clk 0:02:09]} 18. Bc4 {[%clk 0:02:25]}  e5 {[%clk 0:01:59]} 19. dxe5 {[%clk 0:02:20]}  Bxe5 {[%clk 0:01:58]} 20. Nxe5 {[%clk 0:02:21]}  Qxe5 {[%clk 0:01:58]} 21. Bg3 {[%clk 0:02:20]}  Qg5 {[%clk 0:01:42]} 22. Ra4 {[%clk 0:02:15]}  Na6 {[%clk 0:01:38]} 23. Bxa6 {[%clk 0:02:12]}  bxa6 {[%clk 0:01:37]} 24. e5 {[%clk 0:02:12]}  Nd5 {[%clk 0:01:34]} 25. Nxd5 {[%clk 0:02:09]}  cxd5 {[%clk 0:01:35]} 26. f4 {[%clk 0:02:07]}  Qf5 {[%clk 0:01:32]} 27. Qd1 {[%clk 0:02:03]}  Be6 {[%clk 0:01:30]} 28. Qd4 {[%clk 0:02:03]}  Rfb8 {[%clk 0:01:28]} 29. Rb4 {[%clk 0:02:01]}  Rxb4 {[%clk 0:01:27]} 30. Qxb4 {[%clk 0:02:02]}  Qe4 {[%clk 0:01:23]} 31. Qxe4 {[%clk 0:01:46]}  dxe4 {[%clk 0:01:22]} 32. f5 {[%clk 0:01:47]}  Bc4 {[%clk 0:01:21]} 33. Re1 {[%clk 0:01:46]}  Bd3 {[%clk 0:01:19]} 34. Bf2 {[%clk 0:01:45]}  Rb8 {[%clk 0:01:18]} 35. Bd4 {[%clk 0:01:45]}  Rb5 {[%clk 0:01:17]} 36. Bc3 {[%clk 0:01:45]}  Kf8 {[%clk 0:01:16]} 37. Kf2 {[%clk 0:01:45]}  Ke7 {[%clk 0:01:14]} 38. Ke3 {[%clk 0:01:45]}  g6 {[%clk 0:01:12]} 39. g4 {[%clk 0:01:45]}  gxf5 {[%clk 0:01:11]} 40. gxf5 {[%clk 0:01:46]}  Rb8 {[%clk 0:01:08]} 41. Rg1 {[%clk 0:01:46]}  Kf8 {[%clk 0:00:59]} 42. Rg4 {[%clk 0:01:43]}  Rb5 {[%clk 0:00:49]} 43. Rh4 {[%clk 0:01:41]}  Kg7 {[%clk 0:00:47]} 44. e6+ {[%clk 0:01:38]}  Kf8 {[%clk 0:00:46]} 45. Rf4 {[%clk 0:01:21]}  fxe6 {[%clk 0:00:44]} 46. f6 {[%clk 0:01:20]}  Kf7 {[%clk 0:00:44]} 47. h4 {[%clk 0:01:17]}  Rf5 {[%clk 0:00:42]} 48. Rg4 {[%clk 0:01:17]}  Rxf6 {[%clk 0:00:40]} 49. Bxf6 {[%clk 0:01:15]}  Kxf6 {[%clk 0:00:41]} 50. Rg8 {[%clk 0:01:13]}  Kf5 {[%clk 0:00:40]} 51. b4 {[%clk 0:01:08]}  Kf6 {[%clk 0:00:39]} 52. Ra8 {[%clk 0:01:07]}  Kg6 {[%clk 0:00:38]} 53. Rxa7 {[%clk 0:01:06]}  Kh5 {[%clk 0:00:39]} 54. Rb7 {[%clk 0:01:03]}  Kxh4 {[%clk 0:00:38]} 55. b5 {[%clk 0:01:03]}  Kg3 {[%clk 0:00:34]} 56. Rg7+ {[%clk 0:01:00]}  Kh3 {[%clk 0:00:33]} 57. b6 {[%clk 0:01:01]} 1-0


[Site "https://www.chess.com"]

[Event "Titled Tuesday Blitz February 22 Late 2022"]
[White "Chernomordik, Pavel"]
[Black "Kosakowski, Jakub"]
[WhiteFideId "2804530"]
[BlackFideId "1185080"]
[WhiteElo "2249"]
[BlackElo "2476"]
[Result "0-1"]
[Round "01"]
[TimeControl "180+1"]
[Date "2022.02.23"]
[WhiteClock "0:01:31"]
[BlackClock "0:02:08"]

1. e4 {[%clk 0:03:00]}  d6 {[%clk 0:02:58]} 2. d4 {[%clk 0:03:00]}  Nf6 {[%clk 0:02:59]} 3. Nc3 {[%clk 0:02:59]}  g6 {[%clk 0:02:59]} 4. Bg5 {[%clk 0:02:59]}  c6 {[%clk 0:02:57]} 5. Qd2 {[%clk 0:02:59]}  Nbd7 {[%clk 0:02:57]} 6. f4 {[%clk 0:02:58]}  d5 {[%clk 0:02:46]} 7. e5 {[%clk 0:02:53]}  Ne4 {[%clk 0:02:46]} 8. Nxe4 {[%clk 0:02:53]}  dxe4 {[%clk 0:02:47]} 9. e6 {[%clk 0:02:47]}  fxe6 {[%clk 0:02:43]} 10. Bc4 {[%clk 0:02:47]}  Nb6 {[%clk 0:02:41]} 11. Bb3 {[%clk 0:02:47]}  Bg7 {[%clk 0:02:40]} 12. Ne2 {[%clk 0:02:46]}  O-O {[%clk 0:02:37]} 13. O-O-O {[%clk 0:02:41]}  a5 {[%clk 0:02:36]} 14. c3 {[%clk 0:02:41]}  a4 {[%clk 0:02:36]} 15. Bc2 {[%clk 0:02:41]}  Nc4 {[%clk 0:02:34]} 16. Qe1 {[%clk 0:02:41]}  a3 {[%clk 0:02:33]} 17. b3 {[%clk 0:02:40]}  Ne3 {[%clk 0:02:33]} 18. Bxe4 {[%clk 0:02:34]}  Nxd1 {[%clk 0:02:34]} 19. Qxd1 {[%clk 0:02:33]}  Qd6 {[%clk 0:02:28]} 20. Qd3 {[%clk 0:02:23]}  b6 {[%clk 0:02:25]} 21. h4 {[%clk 0:02:19]}  Ba6 {[%clk 0:02:24]} 22. Qf3 {[%clk 0:02:17]}  Bxe2 {[%clk 0:02:19]} 23. Qxe2 {[%clk 0:02:16]}  h6 {[%clk 0:02:20]} 24. Bxe7 {[%clk 0:01:55]}  Qxe7 {[%clk 0:02:18]} 25. Bxg6 {[%clk 0:01:55]}  Qf6 {[%clk 0:02:17]} 26. Be4 {[%clk 0:01:49]}  Qxf4+ {[%clk 0:02:16]} 27. Kb1 {[%clk 0:01:49]}  Qf2 {[%clk 0:02:13]} 28. Re1 {[%clk 0:01:40]}  Qxe2 {[%clk 0:02:11]} 29. Rxe2 {[%clk 0:01:40]}  Rac8 {[%clk 0:02:11]} 30. Bg6 {[%clk 0:01:35]}  c5 {[%clk 0:02:10]} 31. Rxe6 {[%clk 0:01:31]}  cxd4 {[%clk 0:02:11]} 32. c4 {[%clk 0:01:31]}  Rf2 {[%clk 0:02:08]} 0-1


[Site "https://www.chess.com"]

[Event "Titled Tuesday Blitz February 22 Late 2022"]
[White "Csonka, Balazs"]
[Black "Escudero Donoso, Felipe"]
[WhiteFideId "742910"]
[BlackFideId "3410595"]
[WhiteElo "2404"]
[BlackElo "2184"]
[Result "0-1"]
[Round "01"]
[TimeControl "180+1"]
[Date "2022.02.23"]
[WhiteClock "0:00:03"]
[BlackClock "0:00:11"]

1. e4 {[%clk 0:03:00]}  c5 {[%clk 0:03:00]} 2. Nf3 {[%clk 0:03:00]}  e6 {[%clk 0:03:00]} 3. d4 {[%clk 0:03:00]}  cxd4 {[%clk 0:03:01]} 4. Nxd4 {[%clk 0:03:00]}  a6 {[%clk 0:03:01]} 5. Bd3 {[%clk 0:02:59]}  Nf6 {[%clk 0:03:01]} 6. O-O {[%clk 0:02:58]}  Qc7 {[%clk 0:03:01]} 7. Qe2 {[%clk 0:02:53]}  d6 {[%clk 0:03:01]} 8. f4 {[%clk 0:02:51]}  Nbd7 {[%clk 0:02:44]} 9. c4 {[%clk 0:02:46]}  g6 {[%clk 0:02:44]} 10. Nc3 {[%clk 0:02:40]}  Bg7 {[%clk 0:02:43]} 11. Be3 {[%clk 0:02:41]}  O-O {[%clk 0:02:40]} 12. Rac1 {[%clk 0:02:41]}  b6 {[%clk 0:02:41]} 13. g4 {[%clk 0:01:43]}  Nc5 {[%clk 0:02:26]} 14. g5 {[%clk 0:01:32]}  Nxd3 {[%clk 0:02:19]} 15. Qxd3 {[%clk 0:01:33]}  Nd7 {[%clk 0:02:19]} 16. b3 {[%clk 0:01:24]}  Bb7 {[%clk 0:02:18]} 17. Rfd1 {[%clk 0:00:59]}  Rfd8 {[%clk 0:02:00]} 18. Bf2 {[%clk 0:00:44]}  Rac8 {[%clk 0:01:52]} 19. Nde2 {[%clk 0:00:35]}  Nc5 {[%clk 0:01:47]} 20. Qf3 {[%clk 0:00:35]}  Qb8 {[%clk 0:01:30]} 21. h4 {[%clk 0:00:17]}  Qa8 {[%clk 0:01:28]} 22. Ng3 {[%clk 0:00:17]}  b5 {[%clk 0:01:06]} 23. h5 {[%clk 0:00:09]}  b4 {[%clk 0:01:03]} 24. Bxc5 {[%clk 0:00:06]}  dxc5 {[%clk 0:00:54]} 25. Nce2 {[%clk 0:00:05]}  Bb2 {[%clk 0:00:39]} 26. Rb1 {[%clk 0:00:05]}  Rxd1+ {[%clk 0:00:29]} 27. Rxd1 {[%clk 0:00:04]}  Rd8 {[%clk 0:00:29]} 28. Rxd8+ {[%clk 0:00:03]}  Qxd8 {[%clk 0:00:29]} 29. Qe3 {[%clk 0:00:04]}  Qd1+ {[%clk 0:00:23]} 30. Kf2 {[%clk 0:00:04]}  Bd4 {[%clk 0:00:23]} 31. Nxd4 {[%clk 0:00:03]}  cxd4 {[%clk 0:00:23]} 32. Qe2 {[%clk 0:00:04]}  Qc1 {[%clk 0:00:20]} 33. Kf3 {[%clk 0:00:02]}  Qc3+ {[%clk 0:00:17]} 34. Kf2 {[%clk 0:00:02]}  d3 {[%clk 0:00:17]} 35. Qe3 {[%clk 0:00:02]}  d2 {[%clk 0:00:16]} 36. Qxc3 {[%clk 0:00:01]}  d1=N+ {[%clk 0:00:15]} 37. Ke1 {[%clk 0:00:01]}  Nxc3 {[%clk 0:00:16]} 38. hxg6 {[%clk 0:00:01]}  hxg6 {[%clk 0:00:15]} 39. e5 {[%clk 0:00:01]}  Nxa2 {[%clk 0:00:15]} 40. Kd2 {[%clk 0:00:02]}  Nc3 {[%clk 0:00:15]} 41. Nf1 {[%clk 0:00:02]}  Ne4+ {[%clk 0:00:13]} 42. Kd3 {[%clk 0:00:02]}  Nc5+ {[%clk 0:00:13]} 43. Kc2 {[%clk 0:00:02]}  Be4+ {[%clk 0:00:13]} 44. Kb2 {[%clk 0:00:03]}  Kf8 {[%clk 0:00:12]} 45. Nd2 {[%clk 0:00:02]}  Bc6 {[%clk 0:00:11]} 46. Kc2 {[%clk 0:00:02]}  Ke7 {[%clk 0:00:11]} 47. Nf1 {[%clk 0:00:02]}  Be4+ {[%clk 0:00:11]} 48. Kb2 {[%clk 0:00:03]}  a5 {[%clk 0:00:11]} 49. Ne3 {[%clk 0:00:03]}  Nd3+ {[%clk 0:00:11]} 0-1


[Site "https://www.chess.com"]

[Event "Titled Tuesday Blitz February 22 Late 2022"]
[White "Curtis, John"]
[Black "Salimova, Nurgyul"]
[WhiteFideId "3200256"]
[BlackFideId "2915138"]
[WhiteElo "2203"]
[BlackElo "2185"]
[Result "0-1"]
[Round "01"]
[TimeControl "180+1"]
[Date "2022.02.23"]
[WhiteClock "0:00:54"]
[BlackClock "0:00:13"]

1. e4 {[%clk 0:02:57]}  c6 {[%clk 0:02:58]} 2. d4 {[%clk 0:02:56]}  d5 {[%clk 0:02:59]} 3. Nc3 {[%clk 0:02:57]}  dxe4 {[%clk 0:02:59]} 4. Nxe4 {[%clk 0:02:57]}  Nf6 {[%clk 0:02:59]} 5. Nxf6+ {[%clk 0:02:53]}  exf6 {[%clk 0:03:00]} 6. Bc4 {[%clk 0:02:54]}  Bd6 {[%clk 0:02:04]} 7. Ne2 {[%clk 0:02:47]}  O-O {[%clk 0:02:03]} 8. Be3 {[%clk 0:02:44]}  Na6 {[%clk 0:02:02]} 9. Qd2 {[%clk 0:02:43]}  Nc7 {[%clk 0:02:01]} 10. O-O-O {[%clk 0:02:43]}  b5 {[%clk 0:02:01]} 11. Bd3 {[%clk 0:02:43]}  a5 {[%clk 0:02:02]} 12. Bf4 {[%clk 0:02:43]}  Be6 {[%clk 0:02:00]} 13. Bxd6 {[%clk 0:02:42]}  Qxd6 {[%clk 0:02:01]} 14. Kb1 {[%clk 0:02:42]}  a4 {[%clk 0:01:58]} 15. a3 {[%clk 0:02:35]}  Nd5 {[%clk 0:01:55]} 16. c3 {[%clk 0:02:30]}  Nb6 {[%clk 0:01:50]} 17. Nf4 {[%clk 0:02:29]}  Bc4 {[%clk 0:01:49]} 18. g3 {[%clk 0:02:15]}  Rfd8 {[%clk 0:01:37]} 19. h4 {[%clk 0:02:13]}  c5 {[%clk 0:01:33]} 20. Bxc4 {[%clk 0:01:49]}  Nxc4 {[%clk 0:01:32]} 21. Qc2 {[%clk 0:01:49]}  Qc6 {[%clk 0:01:11]} 22. dxc5 {[%clk 0:01:47]}  Rd2 {[%clk 0:01:06]} 23. Qc1 {[%clk 0:01:17]}  Qe4+ {[%clk 0:00:48]} 24. Ka1 {[%clk 0:01:13]}  Rxb2 {[%clk 0:00:41]} 25. Rhe1 {[%clk 0:01:13]}  Qc6 {[%clk 0:00:35]} 26. Rd4 {[%clk 0:01:07]}  Rb3 {[%clk 0:00:34]} 27. Nd5 {[%clk 0:01:04]}  Qxc5 {[%clk 0:00:31]} 28. Re2 {[%clk 0:00:58]}  Rxa3+ {[%clk 0:00:14]} 29. Ra2 {[%clk 0:00:57]}  Rxa2+ {[%clk 0:00:15]} 30. Kxa2 {[%clk 0:00:56]}  Re8 {[%clk 0:00:14]} 31. Qd1 {[%clk 0:00:54]}  Qa3+ {[%clk 0:00:12]} 32. Kb1 {[%clk 0:00:54]}  Qb2# {[%clk 0:00:13]} 0-1


[Site "https://www.chess.com"]

[Event "Titled Tuesday Blitz February 22 Late 2022"]
[White "Desideri, Ricardo Maruchi"]
[Black "Abdyzhapar, Asylbek"]
[WhiteFideId "2110440"]
[BlackFideId "13800337"]
[WhiteElo "1945"]
[BlackElo "2331"]
[Result "0-1"]
[Round "01"]
[TimeControl "180+1"]
[Date "2022.02.23"]
[WhiteClock "0:02:03"]
[BlackClock "0:02:37"]

1. e4 {[%clk 0:02:52]}  e5 {[%clk 0:02:59]} 2. Nf3 {[%clk 0:02:51]}  Nc6 {[%clk 0:02:59]} 3. d4 {[%clk 0:02:51]}  exd4 {[%clk 0:02:59]} 4. Nxd4 {[%clk 0:02:52]}  Nf6 {[%clk 0:02:58]} 5. f3 {[%clk 0:02:50]}  Bc5 {[%clk 0:02:56]} 6. Nb3 {[%clk 0:02:49]}  Bb6 {[%clk 0:02:56]} 7. Qe2 {[%clk 0:02:49]}  O-O {[%clk 0:02:55]} 8. Nc3 {[%clk 0:02:48]}  d5 {[%clk 0:02:55]} 9. Be3 {[%clk 0:02:40]}  d4 {[%clk 0:02:53]} 10. O-O-O {[%clk 0:02:40]}  Be6 {[%clk 0:02:47]} 11. Nxd4 {[%clk 0:02:37]}  Nxd4 {[%clk 0:02:47]} 12. Qf2 {[%clk 0:02:17]}  c5 {[%clk 0:02:46]} 13. Na4 {[%clk 0:02:03]}  Qe7 {[%clk 0:02:37]} 0-1


[Site "https://www.chess.com"]

[Event "Titled Tuesday Blitz February 22 Late 2022"]
[White "Dreev, Aleksey"]
[Black "Lehtosaari, Mauri"]
[WhiteFideId "4100107"]
[BlackFideId "501999"]
[WhiteElo "2636"]
[BlackElo "2444"]
[Result "1-0"]
[Round "01"]
[TimeControl "180+1"]
[Date "2022.02.23"]
[WhiteClock "0:00:13"]
[BlackClock "0:00:02"]

1. d4 {[%clk 0:03:00]}  d5 {[%clk 0:02:58]} 2. Nf3 {[%clk 0:03:00]}  Nf6 {[%clk 0:02:58]} 3. c4 {[%clk 0:03:01]}  c6 {[%clk 0:02:58]} 4. e3 {[%clk 0:03:01]}  Bg4 {[%clk 0:02:53]} 5. Nc3 {[%clk 0:02:58]}  e6 {[%clk 0:02:52]} 6. Qb3 {[%clk 0:02:58]}  Qb6 {[%clk 0:02:51]} 7. Nh4 {[%clk 0:02:58]}  Be7 {[%clk 0:02:49]} 8. h3 {[%clk 0:02:58]}  Bh5 {[%clk 0:02:41]} 9. g4 {[%clk 0:02:59]}  Nfd7 {[%clk 0:02:33]} 10. Ng2 {[%clk 0:02:40]}  Bg6 {[%clk 0:02:32]} 11. Qd1 {[%clk 0:02:26]}  h6 {[%clk 0:02:26]} 12. Nf4 {[%clk 0:02:24]}  Bh7 {[%clk 0:02:26]} 13. h4 {[%clk 0:02:19]}  a5 {[%clk 0:02:06]} 14. a3 {[%clk 0:02:17]}  Qc7 {[%clk 0:02:01]} 15. Bd2 {[%clk 0:02:14]}  Bd6 {[%clk 0:01:56]} 16. Nh5 {[%clk 0:02:13]}  Bf8 {[%clk 0:01:56]} 17. Rc1 {[%clk 0:02:12]}  Qb6 {[%clk 0:01:36]} 18. Na4 {[%clk 0:02:09]}  Qd8 {[%clk 0:01:33]} 19. Bg2 {[%clk 0:02:03]}  Bg6 {[%clk 0:01:26]} 20. Nf4 {[%clk 0:02:02]}  Bh7 {[%clk 0:01:25]} 21. Qb3 {[%clk 0:01:52]}  Ra7 {[%clk 0:01:20]} 22. cxd5 {[%clk 0:01:44]}  exd5 {[%clk 0:01:20]} 23. Nxd5 {[%clk 0:01:44]}  cxd5 {[%clk 0:01:16]} 24. Bxd5 {[%clk 0:01:44]}  Bg8 {[%clk 0:00:59]} 25. Qb5 {[%clk 0:01:41]}  Be7 {[%clk 0:00:48]} 26. Nc5 {[%clk 0:00:41]}  Bxc5 {[%clk 0:00:40]} 27. dxc5 {[%clk 0:00:41]}  Qc7 {[%clk 0:00:32]} 28. Bc3 {[%clk 0:00:32]}  f6 {[%clk 0:00:31]} 29. Qd3 {[%clk 0:00:28]}  Bxd5 {[%clk 0:00:28]} 30. Qxd5 {[%clk 0:00:29]}  Qc6 {[%clk 0:00:28]} 31. Qh5+ {[%clk 0:00:27]}  Kf8 {[%clk 0:00:24]} 32. Rg1 {[%clk 0:00:20]}  Qe6 {[%clk 0:00:16]} 33. g5 {[%clk 0:00:18]}  Qe8 {[%clk 0:00:15]} 34. g6 {[%clk 0:00:18]}  Qe6 {[%clk 0:00:14]} 35. Rd1 {[%clk 0:00:16]}  Nc6 {[%clk 0:00:14]} 36. Rd6 {[%clk 0:00:16]}  Qe7 {[%clk 0:00:14]} 37. Qd5 {[%clk 0:00:16]}  Nde5 {[%clk 0:00:13]} 38. f4 {[%clk 0:00:16]}  Nf3+ {[%clk 0:00:04]} 39. Qxf3 {[%clk 0:00:15]}  Ke8 {[%clk 0:00:02]} 40. Kf2 {[%clk 0:00:15]}  Rf8 {[%clk 0:00:01]} 41. Rgd1 {[%clk 0:00:14]}  f5 {[%clk 0:00:02]} 42. Qd5 {[%clk 0:00:14]}  Qxh4+ {[%clk 0:00:02]} 43. Ke2 {[%clk 0:00:13]}  Qe7 {[%clk 0:00:02]} 44. Re6 {[%clk 0:00:13]} 1-0


[Site "https://www.chess.com"]